[Event "55th Rubinstein Memorial-C 2019"]
[Site "Polanica-Zdroj"]
[Date "2019.08.22"]
[Round "6.8"]
[White "Tokmantsev, Ivan"]
[Black "Maslo, Slawomir"]
[Result "1-0"]
[ECO "A22"]
[WhiteElo "1918"]
[BlackElo "1687"]
[Annotator "NA"]
[PlyCount "115"]
[EventDate "2019.08.17"]
[EventType "swiss"]
[EventCountry "POL"]
[SourceTitle "playchess.com"]
[Source "ChessBase"]
[SourceQuality "1"]
[TimeControl "40/5400+30:1800+30"]

1. c4 {[%emt 0:04:52]} e5 {[%emt 0:00:00]} 2. Nc3 {[%emt 0:00:18]} Nf6 {[%emt 0:00:04]} 3. g3 {[%emt 0:00:19]} c6 {[%emt 0:00:24]} 4. Bg2 {[%emt 0:00:22]} Bb4 {[%emt 0:02:24]} 5. a3 {[%emt 0:00:24]} Bxc3 {[%emt 0:00:09]} 6. bxc3 {[%emt 0:00:08]} O-O {[%emt 0:00:18]} 7. d3 {[%emt 0:01:05]} Re8 {[%emt 0:00:50]} 8. Bg5 {[%emt 0:01:21]} h6 {[%emt 0:00:19]} 9. Bxf6 {[%emt 0:00:13]} Qxf6 {[%emt 0:00:14]} 10. e4 {[%emt 0:00:10]} d5 {[%emt 0:01:27]} 11. cxd5 {[%emt 0:26:08]} cxd5 {[%emt 0:00:13]} 12. Qf3 {[%emt 0:02:26]} Qg6 {[%emt 0:05:01]} 13. Ne2 {[%emt 0:01:55]} Bg4 {[%emt 0:09:20]} 14. Qe3 {[%emt 0:02:04]} d4 {[%emt 0:06:23]} 15. cxd4 {[%emt 0:00:41]} Bxe2 {[%emt 0:00:12]} 16. Qxe2 {[%emt 0:00:06]} exd4 {[%emt 0:00:15]} 17. O-O {[%emt 0:00:16]} Nc6 {[%emt 0:00:44]} 18. f4 {[%emt 0:00:50]} f6 {[%emt 0:02:31]} 19. Bf3 {[%emt 0:01:13]} Qf7 {[%emt 0:05:46]} 20. Bh5 {[%emt 0:00:38]} g6 {[%emt 0:00:07]} 21. Bf3 {[%emt 0:00:04]} Kg7 {[%emt 0:04:24]} 22. Rab1 {[%emt 0:03:58]} Qd7 {[%emt 0:08:03]} 23. Rfc1 {[%emt 0:01:38]} Rac8 {[%emt 0:02:07]} 24. Rc5 {[%emt 0:02:29]} b6 {[%emt 0:02:16]} 25. Rd5 {[%emt 0:00:45]} Qxd5 {[%emt 0:00:34]} 26. exd5 {[%emt 0:00:15]} Rxe2 {[%emt 0:00:10]} 27. Bxe2 {[%emt 0:00:07]} Ne7 {[%emt 0:00:16]} 28. Bf3 {[%emt 0:06:43]} Nf5 {[%emt 0:08:34]} 29. Be4 {[%emt 0:07:21]} Ne3 {[%emt 0:01:19]} 30. Bf3 {[%emt 0:13:08]} Kf7 {[%emt 0:11:58]} 31. Rb4 {[%emt 0:01:16]} Nc2 {[%emt 0:03:15]} 32. Ra4 {[%emt 0:02:26]} a5 {[%emt 0:01:32]} 33. Bd1 {[%emt 0:04:20]} Ke7 {[%emt 0:03:04]} 34. Bxc2 {[%emt 0:02:20]} Rxc2 {[%emt 0:00:01]} 35. Rxd4 {[%emt 0:00:10]} Kd6 {[%emt 0:00:11]} 36. Rc4 {[%emt 0:00:04]} Ra2 {[%emt 0:10:22]} 37. Rc6+ {[%emt 0:00:08]} Kxd5 {[%emt 0:00:08]} 38. Rxb6 {[%emt 0:00:06]} Rxa3 {[%emt 0:02:17]} 39. Rxf6 {[%emt 0:00:08]} Rxd3 {[%emt 0:01:32]} 40. Rxg6 {[%emt 0:00:09]} a4 {[%emt 0:00:22]} 41. Rxh6 {[%emt 0:33:28]} a3 {[%emt 0:30:36]} 42. Ra6 {[%emt 0:00:09]} Ke4 {[%emt 0:00:11]} 43. Kg2 {[%emt 0:00:17]} Rd2+ {[%emt 0:00:07]} 44. Kh3 {[%emt 0:00:05]} a2 {[%emt 0:00:17]} 45. Ra4+ {[%emt 0:00:15]} Kf5 {[%emt 0:00:18]} 46. g4+ {[%emt 0:00:08]} Kg6 {[%emt 0:00:17]} 47. Kg3 {[%emt 0:00:16]} Rb2 {[%emt 0:00:29]} 48. Ra6+ {[%emt 0:00:23]} Kg7 {[%emt 0:00:08]} 49. h3 {[%emt 0:00:07]} Rc2 {[%emt 0:00:24]} 50. Kh4 {[%emt 0:00:11]} Rf2 {[%emt 0:00:10]} 51. f5 {[%emt 0:00:06]} Rh2 {[%emt 0:00:13]} 52. Kg5 {[%emt 0:00:06]} Rb2 {[%emt 0:00:17]} 53. h4 {[%emt 0:00:06]} Rf2 {[%emt 0:00:07]} 54. h5 {[%emt 0:00:04]} Rh2 {[%emt 0:00:10]} 55. h6+ {[%emt 0:00:09]} Kh7 {[%emt 0:00:33]} 56. Ra7+ {[%emt 0:00:07]} Kh8 {[%emt 0:00:03]} 57. Kg6 {[%emt 0:00:13]} a1=Q {[%emt 0:00:13]} 58. Rxa1 {[%emt 0:00:07]} 1-0

[Event "55th Rubinstein Memorial-C 2019"]
[Site "Polanica-Zdroj"]
[Date "2019.08.22"]
[Round "6.9"]
[White "Szydelko, Kazimierz"]
[Black "Pyka, Roman"]
[Result "1/2-1/2"]
[ECO "C88"]
[WhiteElo "1717"]
[BlackElo "1860"]
[Annotator "NA"]
[PlyCount "26"]
[EventDate "2019.08.17"]
[EventType "swiss"]
[EventCountry "POL"]
[SourceTitle "playchess.com"]
[Source "ChessBase"]
[SourceQuality "1"]
[TimeControl "40/5400+30:1800+30"]

1. e4 {[%emt 0:00:00]} e5 {[%emt 0:00:00]} 2. Nf3 {[%emt 0:00:00]} Nc6 {[%emt 0:00:00]} 3. Bb5 {[%emt 0:00:26]} a6 {[%emt 0:00:02]} 4. Ba4 {[%emt 0:00:21]} b5 {[%emt 0:02:26]} 5. Bb3 {[%emt 0:00:54]} Be7 {[%emt 0:00:14]} 6. O-O {[%emt 0:02:38]} Nf6 {[%emt 0:00:10]} 7. c3 {[%emt 0:01:30]} O-O {[%emt 0:00:16]} 8. Re1 {[%emt 0:00:36]} Re8 {[%emt 0:00:37]} 9. Ng5 {[%emt 0:01:47]} Rf8 {[%emt 0:00:19]} 10. Nf3 {[%emt 0:06:18]} Re8 {[%emt 0:03:34]} 11. Ng5 {[%emt 0:01:40]} Rf8 {[%emt 0:00:20]} 12. Nf3 {[%emt 0:00:45]} Re8 {[%emt 0:00:21]} 13. Ng5 {[%emt 0:00:39]} Rf8 1/2-1/2

[Event "55th Rubinstein Memorial-C 2019"]
[Site "Polanica-Zdroj"]
[Date "2019.08.22"]
[Round "6.10"]
[White "Witkowski, Krzysztof"]
[Black "Koscielny, Edmond"]
[Result "1-0"]
[ECO "B08"]
[WhiteElo "1707"]
[BlackElo "1841"]
[Annotator "NA"]
[PlyCount "73"]
[EventDate "2019.08.17"]
[EventType "swiss"]
[EventCountry "POL"]
[SourceTitle "playchess.com"]
[Source "ChessBase"]
[SourceQuality "1"]
[TimeControl "40/5400+30:1800+30"]

1. e4 {[%emt 0:00:00]} d6 {[%emt 0:00:00]} 2. d4 {[%emt 0:00:00]} Nf6 {[%emt 0:00:00]} 3. Nc3 {[%emt 0:00:00]} g6 {[%emt 0:00:07]} 4. Nf3 {[%emt 0:00:00]} Bg7 {[%emt 0:00:09]} 5. h3 {[%emt 0:00:00]} c6 {[%emt 0:00:43]} 6. Be3 {[%emt 0:00:29]} O-O {[%emt 0:00:12]} 7. Qd2 {[%emt 0:01:27]} Qa5 {[%emt 0:01:58]} 8. Bd3 {[%emt 0:02:31]} Nbd7 {[%emt 0:01:17]} 9. Ne2 {[%emt 0:07:35]} Qxd2+ {[%emt 0:02:49]} 10. Kxd2 {[%emt 0:01:49]} b6 {[%emt 0:03:05]} 11. c3 {[%emt 0:04:29]} e5 {[%emt 0:02:34]} 12. dxe5 {[%emt 0:00:40]} dxe5 {[%emt 0:01:31]} 13. Kc2 {[%emt 0:01:44]} Bb7 {[%emt 0:05:50]} 14. Nd2 {[%emt 0:02:35]} Rfd8 {[%emt 0:03:41]} 15. f3 {[%emt 0:02:07]} b5 {[%emt 0:01:19]} 16. a4 {[%emt 0:05:34]} a6 {[%emt 0:00:44]} 17. Nb3 {[%emt 0:01:03]} Rac8 {[%emt 0:05:01]} 18. c4 {[%emt 0:11:29]} c5 {[%emt 0:10:32]} 19. axb5 {[%emt 0:08:11]} axb5 {[%emt 0:00:37]} 20. Na5 {[%emt 0:03:31]} bxc4 {[%emt 0:12:57]} 21. Bxc4 {[%emt 0:09:00]} Ba8 {[%emt 0:03:38]} 22. Nc3 {[%emt 0:05:11]} Nb6 {[%emt 0:06:39]} 23. Ba6 {[%emt 0:01:09]} Rc7 {[%emt 0:00:23]} 24. Nc4 {[%emt 0:03:35]} Nxc4 {[%emt 0:02:15]} 25. Bxc4 {[%emt 0:00:24]} Bf8 {[%emt 0:12:01]} 26. Rhd1 {[%emt 0:02:45]} Rxd1 {[%emt 0:02:44]} 27. Rxd1 {[%emt 0:02:30]} Rd7 {[%emt 0:00:37]} 28. Nd5 {[%emt 0:04:12]} Bxd5 {[%emt 0:03:03]} 29. Bxd5 {[%emt 0:01:22]} Kg7 {[%emt 0:01:16]} 30. Kc3 {[%emt 0:03:54]} Nh5 {[%emt 0:01:34]} 31. Rd2 {[%emt 0:08:17]} Ra7 {[%emt 0:01:49]} 32. b3 {[%emt 0:02:11]} Nf4 {[%emt 0:00:30]} 33. g3 {[%emt 0:01:12]} Ne6 {[%emt 0:01:04]} 34. Bxe6 {[%emt 0:00:59]} fxe6 {[%emt 0:00:02]} 35. Kc4 {[%emt 0:01:23]} Rf7 {[%emt 0:02:57]} 36. Rd3 {[%emt 0:00:45]} Rxf3 {[%emt 0:01:47]} 37. Bh6+ {[%emt 0:00:06]} 1-0

[Event "55th Rubinstein Memorial-C 2019"]
[Site "Polanica-Zdroj"]
[Date "2019.08.22"]
[Round "6.11"]
[White "Mike, Patryk"]
[Black "Wianecki, Mateusz"]
[Result "1-0"]
[ECO "C02"]
[WhiteElo "1840"]
[BlackElo "1634"]
[Annotator "NA"]
[PlyCount "75"]
[EventDate "2019.08.17"]
[EventType "swiss"]
[EventCountry "POL"]
[SourceTitle "playchess.com"]
[Source "ChessBase"]
[SourceQuality "1"]
[TimeControl "40/5400+30:1800+30"]

1. e4 {[%emt 0:00:00]} e6 {[%emt 0:00:00]} 2. d4 {[%emt 0:00:00]} d5 {[%emt 0:00:00]} 3. e5 {[%emt 0:00:42]} b6 {[%emt 0:00:00]} 4. c3 {[%emt 0:01:47]} Ne7 {[%emt 0:00:00]} 5. h4 {[%emt 0:05:49]} c5 {[%emt 0:02:19]} 6. Nf3 {[%emt 0:04:14]} Nec6 {[%emt 0:03:59]} 7. h5 {[%emt 0:02:40]} h6 {[%emt 0:00:54]} 8. Be3 {[%emt 0:08:29]} Ba6 {[%emt 0:00:50]} 9. Bxa6 {[%emt 0:01:16]} Nxa6 {[%emt 0:00:01]} 10. a3 {[%emt 0:08:52]} c4 {[%emt 0:08:38]} 11. Nh4 {[%emt 0:03:44]} Nc7 {[%emt 0:08:12]} 12. f4 {[%emt 0:07:07]} Qd7 {[%emt 0:12:01]} 13. g4 {[%emt 0:06:54]} O-O-O {[%emt 0:07:00]} 14. Nd2 {[%emt 0:03:40]} b5 {[%emt 0:02:49]} 15. g5 {[%emt 0:09:25]} Be7 {[%emt 0:02:09]} 16. Qg4 {[%emt 0:05:11]} a5 {[%emt 0:03:30]} 17. Ndf3 {[%emt 0:02:44]} f5 {[%emt 0:09:21]} 18. exf6 {[%emt 0:04:02]} gxf6 {[%emt 0:00:12]} 19. Ng6 {[%emt 0:01:11]} Rh7 {[%emt 0:06:15]} 20. gxf6 {[%emt 0:01:59]} Bxf6 {[%emt 0:00:37]} 21. Nfe5 {[%emt 0:08:21]} Bxe5 {[%emt 0:03:27]} 22. fxe5 {[%emt 0:01:06]} Ne7 {[%emt 0:08:30]} 23. Nxe7+ {[%emt 0:05:40]} Qxe7 {[%emt 0:00:02]} 24. Qh4 {[%emt 0:00:35]} Qd7 {[%emt 0:03:57]} 25. Rg1 {[%emt 0:01:03]} b4 {[%emt 0:02:07]} 26. axb4 {[%emt 0:01:13]} axb4 {[%emt 0:00:02]} 27. Ke2 {[%emt 0:01:46]} Rf8 {[%emt 0:01:52]} 28. Rg6 {[%emt 0:01:46]} bxc3 {[%emt 0:02:07]} 29. bxc3 {[%emt 0:01:04]} Qb5 {[%emt 0:02:19]} 30. Rag1 {[%emt 0:00:20]} Qb2+ {[%emt 0:00:47]} 31. Bd2 {[%emt 0:00:08]} Qc2 {[%emt 0:01:45]} 32. Qh3 {[%emt 0:01:05]} Rhf7 {[%emt 0:00:49]} 33. R1g2 {[%emt 0:01:35]} Rf1 {[%emt 0:02:19]} 34. Rf6 {[%emt 0:00:53]} Qe4+ {[%emt 0:01:51]} 35. Kxf1 {[%emt 0:00:18]} Qc2 36. Ke2 Qd1+ 37. Ke3 Qe1+ 38. Bxe1 1-0

[Event "55th Rubinstein Memorial-C 2019"]
[Site "Polanica-Zdroj"]
[Date "2019.08.22"]
[Round "6.12"]
[White "Sypien, Natan"]
[Black "Rzenca, Jerzy"]
[Result "1/2-1/2"]
[ECO "D19"]
[WhiteElo "1819"]
[BlackElo "1419"]
[Annotator "NA"]
[PlyCount "77"]
[EventDate "2019.08.17"]
[EventType "swiss"]
[EventCountry "POL"]
[SourceTitle "playchess.com"]
[Source "ChessBase"]
[SourceQuality "1"]
[TimeControl "40/5400+30:1800+30"]

1. d4 {[%emt 0:00:00]} d5 {[%emt 0:00:00]} 2. c4 {[%emt 0:00:00]} c6 {[%emt 0:00:00]} 3. Nf3 {[%emt 0:00:00]} Nf6 {[%emt 0:00:00]} 4. Nc3 {[%emt 0:00:00]} dxc4 {[%emt 0:00:02]} 5. a4 {[%emt 0:00:00]} Bf5 {[%emt 0:00:07]} 6. e3 {[%emt 0:00:03]} e6 {[%emt 0:02:08]} 7. Bxc4 {[%emt 0:00:03]} Bb4 {[%emt 0:03:10]} 8. O-O {[%emt 0:00:12]} O-O {[%emt 0:03:56]} 9. Qe2 {[%emt 0:00:04]} Nbd7 {[%emt 0:01:26]} 10. e4 {[%emt 0:03:38]} Bg6 {[%emt 0:00:17]} 11. e5 {[%emt 0:10:41]} Nd5 {[%emt 0:00:53]} 12. Ne4 {[%emt 0:03:43]} Re8 {[%emt 0:07:56]} 13. Rd1 {[%emt 0:11:17]} a6 {[%emt 0:15:30]} 14. a5 {[%emt 0:08:19]} h6 {[%emt 0:19:34]} 15. Bd2 {[%emt 0:04:15]} Be7 {[%emt 0:01:07]} 16. Rac1 {[%emt 0:10:31]} Rc8 {[%emt 0:04:27]} 17. Nc3 {[%emt 0:09:01]} Kh8 {[%emt 0:05:25]} 18. h3 {[%emt 0:05:15]} Nb4 {[%emt 0:10:48]} 19. Na2 {[%emt 0:02:39]} Nd5 {[%emt 0:01:18]} 20. Nc3 {[%emt 0:00:02]} Nb4 {[%emt 0:00:10]} 21. Na2 {[%emt 0:00:04]} Nd5 {[%emt 0:00:05]} 22. b4 {[%emt 0:03:14]} Kg8 {[%emt 0:04:38]} 23. Bd3 {[%emt 0:00:20]} Nf8 {[%emt 0:06:29]} 24. Rb1 {[%emt 0:00:59]} Bxd3 {[%emt 0:01:20]} 25. Qxd3 {[%emt 0:00:03]} Ng6 {[%emt 0:00:02]} 26. Nc1 {[%emt 0:01:41]} Ndf4 {[%emt 0:02:36]} 27. Qe4 {[%emt 0:00:54]} Qd5 {[%emt 0:00:34]} 28. Qe3 {[%emt 0:04:35]} Bg5 {[%emt 0:01:54]} 29. Qb3 {[%emt 0:02:17]} Qxb3 {[%emt 0:00:28]} 30. Nxb3 {[%emt 0:01:29]} Be7 {[%emt 0:01:36]} 31. Kf1 {[%emt 0:04:03]} Rc7 {[%emt 0:02:27]} 32. Nc5 {[%emt 0:01:33]} Bf8 {[%emt 0:01:34]} 33. h4 {[%emt 0:05:08]} Nd5 {[%emt 0:00:11]} 34. g3 {[%emt 0:00:36]} Nge7 {[%emt 0:00:20]} 35. Ke2 {[%emt 0:00:50]} Nc8 {[%emt 0:00:46]} 36. Rb3 {[%emt 0:01:36]} Bxc5 {[%emt 0:00:35]} 37. dxc5 {[%emt 0:02:15]} Na7 {[%emt 0:00:54]} 38. Be1 {[%emt 0:00:10]} Nb5 {[%emt 0:00:23]} 39. Rbd3 1/2-1/2

[Event "55th Rubinstein Memorial-C 2019"]
[Site "Polanica-Zdroj"]
[Date "2019.08.22"]
[Round "6.13"]
[White "Burdzicki, Stanislaw"]
[Black "Myrmus, Mateusz"]
[Result "0-1"]
[ECO "D85"]
[WhiteElo "1785"]
[BlackElo "1598"]
[Annotator "NA"]
[PlyCount "72"]
[EventDate "2019.08.17"]
[EventType "swiss"]
[EventCountry "POL"]
[SourceTitle "playchess.com"]
[Source "ChessBase"]
[SourceQuality "1"]
[TimeControl "40/5400+30:1800+30"]

1. d4 {[%emt 0:00:00]} Nf6 {[%emt 0:00:00]} 2. c4 {[%emt 0:00:00]} g6 {[%emt 0:00:10]} 3. Nc3 {[%emt 0:00:11]} d5 {[%emt 0:00:26]} 4. cxd5 {[%emt 0:01:15]} Nxd5 {[%emt 0:00:09]} 5. e4 {[%emt 0:00:07]} Nxc3 {[%emt 0:00:11]} 6. bxc3 {[%emt 0:00:08]} Bg7 {[%emt 0:00:17]} 7. Be3 {[%emt 0:01:19]} c5 {[%emt 0:00:20]} 8. Bc4 {[%emt 0:03:08]} O-O {[%emt 0:01:04]} 9. Ne2 {[%emt 0:01:13]} Qa5 {[%emt 0:03:02]} 10. O-O {[%emt 0:03:26]} Nc6 {[%emt 0:01:34]} 11. Qc1 {[%emt 0:11:34]} Rd8 {[%emt 0:01:36]} 12. Rd1 {[%emt 0:00:15]} Qa4 13. Bd5 {[%emt 0:06:35]} Qa6 {[%emt 0:05:35]} 14. Rd2 {[%emt 0:09:40]} e6 {[%emt 0:04:35]} 15. Bxc6 {[%emt 0:01:02]} Qxc6 {[%emt 0:00:06]} 16. dxc5 {[%emt 0:02:19]} Rxd2 {[%emt 0:03:11]} 17. Qxd2 {[%emt 0:00:08]} b6 {[%emt 0:00:50]} 18. cxb6 {[%emt 0:16:30]} axb6 {[%emt 0:00:09]} 19. f3 {[%emt 0:00:21]} Ba6 {[%emt 0:02:03]} 20. Rb1 {[%emt 0:04:21]} Qc4 {[%emt 0:01:24]} 21. Rb2 {[%emt 0:00:54]} Bf6 {[%emt 0:08:18]} 22. Kf2 {[%emt 0:03:26]} Rd8 {[%emt 0:01:19]} 23. Qc2 {[%emt 0:01:40]} Rd3 {[%emt 0:10:14]} 24. Rb4 {[%emt 0:05:31]} Qc7 {[%emt 0:00:49]} 25. Rb3 {[%emt 0:13:40]} Bc4 {[%emt 0:10:03]} 26. Rb4 {[%emt 0:03:30]} b5 {[%emt 0:01:33]} 27. Nf4 {[%emt 0:03:36]} Rxc3 {[%emt 0:03:52]} 28. Qd2 {[%emt 0:07:10]} Ra3 {[%emt 0:00:20]} 29. Bd4 {[%emt 0:00:54]} Rxa2 {[%emt 0:00:18]} 30. Rb2 {[%emt 0:00:20]} Rxb2 {[%emt 0:00:11]} 31. Qxb2 {[%emt 0:00:15]} Bxd4+ {[%emt 0:00:10]} 32. Qxd4 {[%emt 0:00:03]} Qxf4 {[%emt 0:00:15]} 33. Qd8+ {[%emt 0:00:13]} Kg7 {[%emt 0:00:07]} 34. g3 {[%emt 0:00:05]} Qe5 {[%emt 0:00:40]} 35. f4 {[%emt 0:00:04]} Qb2+ {[%emt 0:00:29]} 36. Kg1 {[%emt 0:00:12]} Qa1+ {[%emt 0:00:15]} 0-1

[Event "55th Rubinstein Memorial-C 2019"]
[Site "Polanica-Zdroj"]
[Date "2019.08.22"]
[Round "6.14"]
[White "Bartoszewicz, Marcin"]
[Black "Chmielewski, Miroslaw"]
[Result "1-0"]
[ECO "B07"]
[WhiteElo "1950"]
[BlackElo "1646"]
[Annotator "NA"]
[PlyCount "75"]
[EventDate "2019.08.17"]
[EventType "swiss"]
[EventCountry "POL"]
[SourceTitle "playchess.com"]
[Source "ChessBase"]
[SourceQuality "1"]
[TimeControl "40/5400+30:1800+30"]

1. e4 {[%emt 0:00:00]} d6 {[%emt 0:00:00]} 2. d4 {[%emt 0:00:26]} Nf6 {[%emt 0:00:06]} 3. Nc3 {[%emt 0:01:23]} Nbd7 {[%emt 0:00:31]} 4. Nf3 {[%emt 0:12:57]} e5 {[%emt 0:04:56]} 5. Bc4 {[%emt 0:02:03]} Be7 {[%emt 0:00:10]} 6. O-O {[%emt 0:01:35]} O-O {[%emt 0:00:17]} 7. dxe5 {[%emt 0:06:30]} Nxe5 {[%emt 0:01:12]} 8. Nxe5 {[%emt 0:01:53]} dxe5 {[%emt 0:00:09]} 9. Qe2 {[%emt 0:01:42]} c6 {[%emt 0:00:37]} 10. a4 {[%emt 0:02:23]} Bg4 {[%emt 0:12:13]} 11. f3 {[%emt 0:02:13]} Bh5 {[%emt 0:00:52]} 12. Be3 {[%emt 0:00:40]} Qa5 {[%emt 0:05:27]} 13. Qf2 {[%emt 0:02:52]} Bg6 {[%emt 0:03:47]} 14. Rfd1 {[%emt 0:01:10]} Rfd8 {[%emt 0:05:47]} 15. Rxd8+ {[%emt 0:03:57]} Bxd8 {[%emt 0:02:30]} 16. Rd1 {[%emt 0:00:53]} Bb6 {[%emt 0:00:21]} 17. g4 {[%emt 0:02:16]} h6 {[%emt 0:13:23]} 18. h4 {[%emt 0:07:00]} Kf8 19. Kg2 Qb4 {[%emt 0:11:05]} 20. Bb3 {[%emt 0:02:07]} Bxe3 {[%emt 0:02:40]} 21. Qxe3 {[%emt 0:00:08]} Qe7 22. h5 {[%emt 0:02:09]} Bh7 {[%emt 0:01:20]} 23. a5 {[%emt 0:06:49]} a6 {[%emt 0:10:22]} 24. Na4 {[%emt 0:03:02]} Nd7 {[%emt 0:02:10]} 25. Rxd7 {[%emt 0:00:54]} Qxd7 {[%emt 0:00:13]} 26. Nb6 {[%emt 0:00:08]} Qe8 {[%emt 0:01:14]} 27. Qc5+ {[%emt 0:01:14]} Kg8 {[%emt 0:00:21]} 28. Nxa8 {[%emt 0:00:17]} Qxa8 {[%emt 0:00:07]} 29. Qe7 {[%emt 0:00:43]} Qf8 {[%emt 0:00:25]} 30. Qxb7 {[%emt 0:00:10]} g6 {[%emt 0:02:02]} 31. hxg6 {[%emt 0:02:17]} Bxg6 {[%emt 0:00:14]} 32. Qxc6 {[%emt 0:01:12]} Kg7 {[%emt 0:00:40]} 33. Qc7 {[%emt 0:06:28]} Qe8 {[%emt 0:01:15]} 34. Bc4 {[%emt 0:02:43]} Kf6 {[%emt 0:04:33]} 35. Bxa6 {[%emt 0:03:40]} Qa4 {[%emt 0:02:13]} 36. Qd6+ {[%emt 0:00:36]} Kg5 {[%emt 0:00:33]} 37. Qxe5+ {[%emt 0:00:18]} Kh4 {[%emt 0:00:10]} 38. Qf6# 1-0

[Event "55th Rubinstein Memorial-C 2019"]
[Site "Polanica-Zdroj"]
[Date "2019.08.22"]
[Round "6.15"]
[White "Rylski, Tadeusz"]
[Black "Binkowska, Agata"]
[Result "1-0"]
[ECO "E07"]
[WhiteElo "1616"]
[BlackElo "1896"]
[Annotator "NA"]
[PlyCount "61"]
[EventDate "2019.08.17"]
[EventType "swiss"]
[EventCountry "POL"]
[SourceTitle "playchess.com"]
[Source "ChessBase"]
[SourceQuality "1"]
[TimeControl "40/5400+30:1800+30"]

1. d4 {[%emt 0:00:00]} d5 {[%emt 0:00:00]} 2. c4 {[%emt 0:00:00]} e6 {[%emt 0:00:00]} 3. Nf3 {[%emt 0:00:00]} Nf6 {[%emt 0:00:00]} 4. g3 {[%emt 0:00:44]} Be7 {[%emt 0:00:05]} 5. Bg2 {[%emt 0:00:57]} O-O {[%emt 0:00:46]} 6. O-O {[%emt 0:00:42]} Nbd7 {[%emt 0:01:36]} 7. Nbd2 {[%emt 0:03:03]} b6 {[%emt 0:05:10]} 8. Qc2 {[%emt 0:03:57]} Bb7 {[%emt 0:03:02]} 9. b3 {[%emt 0:02:06]} c5 {[%emt 0:07:06]} 10. Rd1 {[%emt 0:09:05]} Rc8 {[%emt 0:06:36]} 11. dxc5 {[%emt 0:06:55]} Bxc5 {[%emt 0:02:52]} 12. Bb2 {[%emt 0:04:06]} Qe7 {[%emt 0:23:48]} 13. Rac1 {[%emt 0:07:51]} dxc4 {[%emt 0:05:45]} 14. bxc4 {[%emt 0:00:33]} Ba6 {[%emt 0:08:56]} 15. Qa4 {[%emt 0:04:01]} Nb8 {[%emt 0:04:44]} 16. Be5 {[%emt 0:06:38]} Nfd7 {[%emt 0:04:24]} 17. Bb2 {[%emt 0:06:38]} Rfd8 {[%emt 0:04:36]} 18. e3 {[%emt 0:07:55]} Nf6 {[%emt 0:06:28]} 19. Ne5 {[%emt 0:06:24]} Qe8 {[%emt 0:03:57]} 20. Qxe8+ {[%emt 0:03:44]} Nxe8 {[%emt 0:00:29]} 21. Nb3 {[%emt 0:02:16]} Be7 {[%emt 0:01:59]} 22. Nd4 {[%emt 0:01:38]} Bf6 {[%emt 0:00:33]} 23. Ndf3 {[%emt 0:07:38]} Nd6 {[%emt 0:01:36]} 24. Nd2 {[%emt 0:05:45]} Bb7 {[%emt 0:01:34]} 25. Bxb7 {[%emt 0:00:57]} Nxb7 {[%emt 0:00:05]} 26. Ndf3 {[%emt 0:01:30]} Na6 {[%emt 0:00:32]} 27. Ba3 {[%emt 0:01:34]} Nac5 {[%emt 0:00:26]} 28. Rd4 {[%emt 0:01:13]} Nd7 {[%emt 0:01:45]} 29. Rxd7 {[%emt 0:00:29]} Bxe5 30. Nxe5 Rxd7 31. Nxd7 1-0

[Event "55th Rubinstein Memorial-C 2019"]
[Site "Polanica-Zdroj"]
[Date "2019.08.22"]
[Round "6.16"]
[White "Bogdanov, Maxim A."]
[Black "Borkowska, Zuzanna"]
[Result "1-0"]
[ECO "D01"]
[WhiteElo "1763"]
[BlackElo "1606"]
[Annotator "NA"]
[PlyCount "77"]
[EventDate "2019.08.17"]
[EventType "swiss"]
[EventCountry "POL"]
[SourceTitle "playchess.com"]
[Source "ChessBase"]
[SourceQuality "1"]
[TimeControl "40/5400+30:1800+30"]

1. d4 {[%emt 0:00:00]} Nf6 {[%emt 0:00:02]} 2. Nc3 {[%emt 0:00:00]} d5 {[%emt 0:00:23]} 3. Bg5 {[%emt 0:00:00]} Nbd7 {[%emt 0:00:33]} 4. Nf3 {[%emt 0:00:00]} e6 {[%emt 0:02:12]} 5. a3 {[%emt 0:00:00]} c5 {[%emt 0:00:21]} 6. e3 {[%emt 0:00:05]} a6 {[%emt 0:00:15]} 7. Be2 {[%emt 0:01:40]} Be7 {[%emt 0:01:12]} 8. O-O {[%emt 0:00:19]} O-O {[%emt 0:00:08]} 9. Rc1 {[%emt 0:01:11]} c4 {[%emt 0:00:20]} 10. Re1 {[%emt 0:01:38]} b5 {[%emt 0:01:08]} 11. Nb1 {[%emt 0:03:59]} a5 12. Ne5 {[%emt 0:10:02]} Nxe5 {[%emt 0:04:45]} 13. dxe5 {[%emt 0:00:05]} Nd7 {[%emt 0:00:12]} 14. Bxe7 Qxe7 15. f4 {[%emt 0:01:04]} b4 {[%emt 0:01:03]} 16. Bf3 {[%emt 0:01:05]} Rb8 {[%emt 0:00:40]} 17. Qd4 {[%emt 0:01:17]} Qc5 {[%emt 0:01:06]} 18. Rcd1 {[%emt 0:00:44]} Qxd4 {[%emt 0:02:25]} 19. Rxd4 {[%emt 0:00:14]} Nb6 {[%emt 0:02:23]} 20. e4 {[%emt 0:05:42]} Bb7 {[%emt 0:00:35]} 21. exd5 {[%emt 0:01:25]} exd5 {[%emt 0:00:51]} 22. Red1 {[%emt 0:03:43]} Ba8 {[%emt 0:08:18]} 23. axb4 {[%emt 0:01:01]} axb4 {[%emt 0:00:10]} 24. Nd2 {[%emt 0:00:29]} Na4 {[%emt 0:03:29]} 25. Nf1 {[%emt 0:09:27]} Nxb2 {[%emt 0:01:55]} 26. Ra1 {[%emt 0:00:16]} Rfd8 {[%emt 0:00:59]} 27. Ne3 {[%emt 0:00:51]} Kf8 {[%emt 0:03:22]} 28. Nf5 {[%emt 0:06:35]} Bc6 {[%emt 0:04:02]} 29. Ra6 {[%emt 0:14:04]} Ba4 {[%emt 0:01:58]} 30. Bxd5 {[%emt 0:00:51]} Bxc2 {[%emt 0:00:37]} 31. Nd6 {[%emt 0:00:53]} Bd3 {[%emt 0:01:01]} 32. Ra7 {[%emt 0:01:05]} Bg6 {[%emt 0:05:01]} 33. f5 {[%emt 0:05:58]} Bh5 {[%emt 0:02:10]} 34. g4 {[%emt 0:00:37]} Rxd6 {[%emt 0:00:44]} 35. exd6 {[%emt 0:00:11]} c3 {[%emt 0:01:09]} 36. Bb3 {[%emt 0:00:08]} Nd3 {[%emt 0:03:06]} 37. gxh5 {[%emt 0:00:29]} Nc5 {[%emt 0:00:10]} 38. Rxf7+ {[%emt 0:03:30]} Ke8 {[%emt 0:00:08]} 39. d7+ {[%emt 0:00:07]} 1-0